bitfinex/quotes_SOLUSD_20240616
["timestamp","ask_amount","ask_price","bid_price","bid_amount"]
[1718545411726,0.17,145.41,145.38,52.635]
[1718545412125,0.17,145.41,145.38,65.8302]
[1718545412445,0.17,145.41,145.39,2.5448]
[1718545412644,0.17,145.41,145.34,36.7675]
[1718545412823,5.9,145.41,145.36,8.1053]
[1718545413022,0.17,145.4,145.37,2.5452]
[1718545413330,0.17,145.4,145.38,2.5449]
[1718545413548,0.17,145.4,145.37,8.105]
[1718545414227,0.17,145.4,145.37,2.545]
[1718545416249,110.1762,145.44,145.37,2.545]
[1718545416250,29.0896,145.46,145.4,2.5446]
[1718545416445,29.0896,145.46,145.41,2.5444]
[1718545416446,27.0185,145.46,145.41,2.5444]
[1718545416624,21.4585,145.46,145.41,8.1044]
[1718545416826,27.0185,145.46,145.41,8.1044]
[1718545417137,24.0021,145.46,145.41,5.56]
[1718545417632,0.68,145.45,145.41,5.56]
[1718545418550,21.4585,145.46,145.42,5.0885]
[1718545418732,18.2757,145.49,145.43,50.56]
[1718545418930,2.5433,145.48,145.43,50.56]
[1718545419442,8.1033,145.48,145.43,50.56]
[1718545419741,13.1899,145.48,145.43,50.56]
[1718545419963,8.1033,145.48,145.43,50.56]
[1718545420264,13.1895,145.49,145.43,47.544]
[1718545421048,2.5433,145.48,145.43,45.0]
[1718545421355,0.17,145.47,145.43,45.0]
[1718545421550,0.51,145.47,145.43,45.0]
[1718545422773,0.51,145.47,145.42,47.5442]
[1718545424029,3.0535,145.47,145.42,45.0]
[1718545424235,15.7708,145.47,145.42,45.0]
[1718545424453,15.7708,145.47,145.41,47.5445]
[1718545424658,8.1404,145.47,145.41,47.5445]
[1718545425457,2.5437,145.46,145.41,45.0]
[1718545425755,2.7138,145.45,145.41,50.56]
[1718545425939,0.17,145.45,145.41,50.56]
[1718545426132,0.17,145.45,145.41,45.0]
[1718545428231,0.17,145.45,145.41,47.5445]
[1718545429484,0.17,145.45,145.41,52.6335]
[1718545429758,5.73,145.45,145.41,47.5445]
[1718545430335,0.17,145.45,145.41,47.5445]
[1718545430539,5.56,145.45,145.41,52.6335]
[1718545431365,0.51,145.44,145.4,7.6337]
[1718545431555,5.73,145.43,145.38,5.0898]
[1718545431869,5.9,145.42,145.38,7.6347]
[1718545432055,5.73,145.42,145.38,7.6347]
[1718545432449,5.73,145.42,145.39,2.5448]
[1718545432656,5.73,145.42,145.38,22.9049]
[1718545432948,5.73,145.42,145.39,2.5448]
[1718545433471,5.73,145.42,145.38,22.9049]
[1718545433472,5.73,145.42,145.38,2.5449]
[1718545433774,0.17,145.41,145.38,2.5449]
[1718545434374,5.56,145.4,145.36,7.6359]
[1718545434672,0.34,145.39,145.36,2.5452]
[1718545435454,0.34,145.39,145.36,7.636]
[1718545436453,0.34,145.39,145.35,2.5454]
[1718545436771,0.34,145.39,145.35,7.6364]
[1718545437188,5.9,145.39,145.36,2.5454]
[1718545437348,5.9,145.39,145.37,2.5451]
[1718545437552,0.34,145.39,145.36,25.4534]
[1718545437977,0.34,145.39,145.36,7.6359]
[1718545438275,0.34,145.39,145.36,2.5452]
[1718545439048,0.34,145.39,145.36,7.6359]
[1718545439248,0.34,145.39,145.36,15.272]
[1718545439474,0.34,145.39,145.36,7.6359]
[1718545440263,5.56,145.4,145.37,2.5452]
[1718545440464,0.17,145.41,145.37,47.5452]
[1718545440667,5.73,145.41,145.37,47.5452]
[1718545440872,0.17,145.4,145.37,47.5452]
[1718545441051,0.17,145.4,145.37,45.0]
[1718545442186,0.17,145.4,145.37,47.5452]
[1718545442979,0.17,145.4,145.37,45.0]
[1718545443365,0.17,145.4,145.37,47.5452]
[1718545443570,0.17,145.4,145.37,45.0]
[1718545445066,22.8978,145.43,145.37,45.0]
[1718545445067,0.17,145.43,145.37,45.0]
[1718545445262,2.7142,145.43,145.38,5.56]
[1718545445478,0.17,145.42,145.37,76.0116]
[1718545445677,0.17,145.42,145.37,58.1953]
[1718545445873,5.73,145.42,145.37,52.6355]
[1718545446073,0.17,145.41,145.37,45.0]
[1718545446281,5.73,145.41,145.37,45.0]
[1718545446587,0.17,145.4,145.37,45.0]
[1718545447182,0.17,145.4,145.37,47.5452]
[1718545449195,0.34,145.4,145.35,15.2731]
[1718545449374,0.17,145.39,145.34,25.4562]
[1718545449688,5.73,145.39,145.35,47.5455]
[1718545450480,5.73,145.39,145.35,52.6366]
[1718545450694,5.73,145.39,145.35,60.2733]
[1718545450880,0.17,145.39,145.35,60.2733]
[1718545451994,0.17,145.39,145.36,2.5454]
[1718545455110,0.17,145.39,145.35,52.6365]
[1718545455271,6.07,145.39,145.34,2.5457]
[1718545455477,0.34,145.38,145.34,7.6371]
[1718545455685,0.34,145.38,145.34,2.5457]
[1718545456173,5.9,145.38,145.34,2.5457]
[1718545456375,5.9,145.38,145.34,7.6372]
[1718545457264,5.9,145.38,145.34,15.2743]
[1718545458808,5.9,145.38,145.35,2.5455]
[1718545458980,5.9,145.38,145.35,7.6365]
[1718545459296,0.34,145.38,145.35,5.091]
[1718545459498,0.34,145.38,145.35,22.9099]
[1718545459796,0.34,145.38,145.36,2.5453]
[1718545460377,0.34,145.38,145.35,25.4553]
[1718545460566,0.34,145.38,145.36,2.5453]
[1718545461316,0.34,145.38,145.35,22.9099]
[1718545461475,0.34,145.38,145.36,2.5453]
[1718545461890,0.34,145.38,145.35,25.4553]
[1718545462093,0.34,145.38,145.36,2.5453]
[1718545462291,0.34,145.38,145.35,25.4553]
[1718545462498,0.34,145.38,145.35,2.5454]
[1718545463684,0.34,145.38,145.34,25.4562]
[1718545464813,0.34,145.38,145.35,2.5455]
[1718545465015,0.34,145.38,145.35,7.6366]
[1718545465177,0.34,145.38,145.35,15.2733]
[1718545465377,0.34,145.38,145.35,7.6366]
[1718545465704,0.34,145.38,145.35,2.5455]
[1718545467307,0.34,145.38,145.34,25.4561]
[1718545467804,0.34,145.38,145.35,2.5455]
[1718545468301,0.34,145.38,145.35,7.6366]
[1718545468603,0.34,145.38,145.35,15.2733]
[1718545469679,0.34,145.38,145.35,7.6366]
[1718545470686,0.34,145.38,145.35,2.5455]
[1718545471216,0.17,145.38,145.36,15.272]
[1718545471395,0.17,145.39,145.36,22.9082]
[1718545471601,0.34,145.39,145.37,2.5452]
[1718545471988,0.34,145.39,145.36,25.4534]
[1718545472194,15.8095,145.42,145.38,2.545]
[1718545472383,15.8095,145.42,145.39,25.4483]
[1718545472590,15.8095,145.42,145.39,7.6344]
[1718545472812,15.8095,145.42,145.39,15.269]
[1718545473004,15.8095,145.42,145.39,7.6344]
[1718545473600,6.7232,145.43,145.39,2.5447]
[1718545473897,0.17,145.42,145.39,2.5447]
[1718545474307,0.17,145.42,145.38,73.4641]
[1718545474490,0.17,145.42,145.39,2.5448]
[1718545474901,6.07,145.44,145.39,5.0897]
[1718545475109,0.17,145.43,145.4,2.5446]
[1718545475410,0.17,145.43,145.4,8.1046]
[1718545475710,0.17,145.43,145.4,5.56]
[1718545476093,0.17,145.43,145.39,13.1944]
[1718545476708,0.17,145.43,145.39,20.829]
[1718545477101,15.8095,145.46,145.4,20.66]
[1718545477311,13.71250463,145.47,145.4,20.66]
[1718545477312,22.3627,145.5,145.42,5.56]
[1718545477615,22.3627,145.5,145.43,8.1041]
[1718545477616,30.9918,145.49,145.43,8.1041]
[1718545477791,2.5433,145.48,145.43,8.1041]
[1718545477989,8.1033,145.48,145.43,8.1041]
[1718545478191,7.6299,145.48,145.43,5.56]
[1718545478605,0.34,145.47,145.43,5.56]
[1718545478808,2.8834,145.47,145.43,5.56]
[1718545479419,7.9703,145.47,145.43,5.56]
[1718545480622,2.7134,145.47,145.43,5.56]
[1718545481598,0.17,145.47,145.42,8.1042]
[1718545481915,8.1404,145.47,145.43,45.0]
[1718545482133,31.5048,145.47,145.42,5.56]
[1718545482426,2.5436,145.46,145.42,5.56]
[1718545482623,0.51,145.47,145.42,13.1929]
[1718545483118,0.51,145.47,145.41,17.8111]
[1718545483119,3.0534,145.47,145.41,25.4442]
[1718545483325,2.5436,145.46,145.42,45.0]
[1718545483700,13.7005,145.47,145.42,45.0]
[1718545483905,8.6136,145.47,145.42,47.5443]
[1718545484103,0.51,145.47,145.42,52.6329]
[1718545484308,6.07,145.47,145.42,52.6329]
[1718545484596,8.6134,145.47,145.42,47.5443]
[1718545484905,6.07,145.47,145.42,47.5443]
[1718545485718,8.6134,145.47,145.42,47.5443]
[1718545485931,8.6134,145.47,145.42,52.6329]
[1718545485932,6.07,145.47,145.42,52.6329]
[1718545487615,6.07,145.47,145.42,60.2659]
[1718545487921,6.07,145.47,145.42,52.6329]
[1718545488924,6.07,145.47,145.42,60.2659]
[1718545489126,6.07,145.47,145.43,2.5441]
[1718545491513,5.9,145.47,145.43,12.7207]
[1718545491710,0.17,145.47,145.44,15.2637]
[1718545492019,0.51,145.48,145.44,15.2637]
[1718545492328,0.51,145.48,145.44,7.6317]
[1718545492824,0.51,145.48,145.44,2.5439]
[1718545493018,0.51,145.48,145.43,31.0008]
[1718545494925,0.51,145.48,145.44,2.5439]
[1718545495129,8.6133,145.48,145.42,55.6484]
[1718545495322,8.1034,145.47,145.42,53.1042]
[1718545495628,0.17,145.46,145.42,47.5443]
[1718545496203,0.17,145.46,145.42,45.0]
[1718545496707,0.17,145.46,145.42,52.6328]
[1718545496921,0.17,145.46,145.42,45.0]
[1718545497108,0.17,145.46,145.42,47.5443]
[1718545497310,5.73,145.46,145.42,47.5443]
[1718545498027,5.73,145.46,145.42,52.6329]
[1718545499851,5.73,145.46,145.42,60.2658]
[1718545500144,5.73,145.46,145.42,67.8988]
[1718545500322,5.73,145.46,145.43,2.5441]
[1718545500642,0.17,145.46,145.43,2.5441]
[1718545500841,5.9,145.47,145.43,2.5441]
[1718545501347,0.34,145.47,145.43,2.5441]
[1718545501555,0.17,145.46,145.41,5.0888]
[1718545501719,0.17,145.46,145.39,5.0896]
[1718545501720,23.3577,145.45,145.39,5.0896]
[1718545501928,5.9,145.44,145.41,2.5445]
[1718545502131,15.0838,145.45,145.41,22.8997]
[1718545502315,0.17,145.48,145.43,2.544]
[1718545502520,0.68,145.48,145.43,31.0008]
[1718545502830,0.68,145.48,145.44,2.5439]
[1718545503151,0.68,145.48,145.44,15.2636]
[1718545503321,15.0838,145.49,145.45,23.3662]
[1718545503651,15.0838,145.53,145.48,10.6464]
[1718545503837,15.0838,145.53,145.48,13.1896]
[1718545504023,23.1862,145.53,145.47,13.1901]
[1718545504344,23.1862,145.53,145.48,45.0]
[1718545504345,23.1863,145.53,145.48,45.0]
[1718545504535,8.1028,145.51,145.46,50.56]
[1718545504732,0.17,145.5,145.46,53.1036]
[1718545504932,0.51,145.5,145.46,53.1036]
[1718545505443,0.51,145.5,145.46,47.5436]
[1718545505747,0.51,145.5,145.46,53.1036]
[1718545506429,0.51,145.5,145.46,58.1908]
[1718545506651,0.51,145.5,145.47,7.6302]
[1718545507039,0.51,145.5,145.47,2.5433]
[1718545507239,0.51,145.5,145.46,73.4521]
[1718545507240,0.51,145.5,145.46,75.9956]
[1718545507438,0.28006732,145.5,145.47,2.5434]
[1718545508450,0.28006732,145.5,145.46,47.5435]
[1718545509343,0.28006732,145.5,145.46,52.6307]
[1718545509546,0.28006732,145.5,145.46,60.2616]
[1718545510658,0.28006732,145.5,145.47,2.5434]
[1718545510839,0.34,145.49,145.43,5.0882]
[1718545511038,5.56,145.47,145.44,2.5439]
[1718545511281,5.56,145.47,145.45,2.5438]
[1718545511666,5.9,145.48,145.45,2.5438]
[1718545512170,0.17,145.49,145.43,20.66]
[1718545512335,0.34,145.5,145.47,15.2605]
[1718545512536,0.34,145.5,145.47,7.6301]
[1718545512738,0.34,145.5,145.47,2.5433]
[1718545513556,0.34,145.5,145.45,30.9973]
[1718545513863,5.9,145.5,145.45,2.5437]
[1718545514072,5.9,145.5,145.45,7.6313]
[1718545514646,0.17,145.49,145.44,52.6316]
[1718545514954,5.9,145.49,145.45,2.5438]
[1718545515155,0.34,145.5,145.45,22.8937]
[1718545515156,5.9,145.5,145.45,22.8937]
[1718545515338,5.9,145.5,145.46,2.5436]
[1718545515739,0.34,145.5,145.45,30.9973]
[1718545515954,5.9,145.5,145.46,2.5436]
[1718545516284,0.34,145.5,145.46,2.5436]
[1718545516839,0.34,145.5,145.45,30.9973]
[1718545517649,10.9863,145.49,145.43,5.56]
[1718545517847,0.34,145.48,145.43,13.1923]
[1718545518055,0.34,145.48,145.43,20.8248]
[1718545518741,0.34,145.48,145.44,2.5439]
[1718545519044,15.2538,145.47,145.39,56.0935]
[1718545519237,6.07,145.46,145.41,8.1044]
[1718545519435,6.07,145.46,145.41,2.5444]
[1718545519761,6.07,145.46,145.41,7.6334]
[1718545519947,6.07,145.46,145.41,18.2825]
[1718545520270,5.9,145.46,145.41,31.0048]
[1718545520462,5.9,145.46,145.4,22.9018]
[1718545520767,13.5309,145.46,145.41,50.56]
[1718545521068,8.4436,145.46,145.41,50.56]
[1718545521675,0.34,145.46,145.41,73.4604]
[1718545521872,5.9,145.46,145.42,2.5442]
[1718545522171,0.34,145.46,145.42,2.5442]
[1718545522544,15.4238,145.47,145.43,2.5441]
[1718545522743,20.9838,145.47,145.43,47.5441]
[1718545522967,20.9838,145.47,145.43,45.0]
[1718545523168,15.4238,145.47,145.43,52.6324]
[1718545523350,15.4238,145.47,145.44,2.544]
[1718545523549,16.4657,145.51,145.43,45.0]
[1718545523793,5.56,145.49,145.44,25.4394]
[1718545523972,7.6288,145.5,145.44,7.6317]
[1718545524178,8.1029,145.5,145.44,20.8236]
[1718545524664,2.5429,145.5,145.44,13.1917]
[1718545524867,8.1029,145.5,145.44,13.1917]
[1718545525073,5.56,145.49,145.44,13.1917]
[1718545525375,5.56,145.49,145.44,7.6317]
[1718545525584,0.34,145.48,145.44,7.6317]
[1718545525745,6.07,145.49,145.44,7.6317]
[1718545527467,0.51,145.49,145.44,7.6317]
[1718545527643,0.51,145.49,145.44,5.0879]
[1718545527846,0.51,145.49,145.44,2.5439]
[1718545528047,0.51,145.49,145.44,47.5439]
[1718545528247,0.51,145.49,145.44,52.6318]
[1718545528466,0.51,145.49,145.44,47.5439]
[1718545528669,6.07,145.49,145.44,45.0]
[1718545528969,8.6131,145.49,145.44,47.5439]
[1718545529279,5.56,145.48,145.44,47.5439]
[1718545529681,0.34,145.47,145.43,2.544]
[1718545529987,0.34,145.47,145.43,47.544]
[1718545531143,0.34,145.47,145.43,52.6323]
[1718545531371,0.34,145.47,145.43,60.2647]
[1718545531564,0.34,145.47,145.44,2.5439]
[1718545531769,0.34,145.47,145.44,7.6319]
[1718545532451,0.34,145.47,145.44,15.2639]
[1718545532942,0.17,145.47,145.45,15.2628]
[1718545533144,0.17,145.48,145.45,12.719]
[1718545533347,0.34,145.48,145.45,12.719]
[1718545533678,0.34,145.48,145.46,2.5436]
[1718545533849,0.34,145.48,145.45,12.719]
[1718545534055,0.34,145.48,145.46,7.6308]
[1718545534370,0.17,145.48,145.46,2.5436]
[1718545535081,0.17,145.48,145.45,30.9971]
[1718545535264,0.17,145.48,145.45,13.191]
[1718545535981,0.17,145.48,145.45,18.2787]
[1718545536158,0.17,145.48,145.45,30.9975]
[1718545536680,0.17,145.48,145.44,8.1039]
[1718545536978,0.34,145.48,145.44,8.1039]
[1718545537366,0.17,145.48,145.45,2.5438]
[1718545537862,0.51,145.49,145.45,2.5438]
[1718545539384,0.51,145.49,145.45,8.1038]
[1718545540183,0.51,145.49,145.45,13.1914]
[1718545541078,0.51,145.49,145.45,8.1037]
[1718545542669,0.51,145.49,145.45,13.1912]
[1718545543293,16.4657,145.51,145.46,5.56]
[1718545543471,16.4657,145.51,145.47,47.5434]
[1718545543786,29.6541,145.51,145.47,45.0]
[1718545543965,37.2824,145.51,145.45,8.1036]
[1718545544170,2.5429,145.5,145.45,5.56]
[1718545544374,18.2748,145.5,145.44,2.5439]
[1718545544580,6.07,145.49,145.44,47.5439]
[1718545544959,6.07,145.49,145.44,52.6318]
[1718545545264,6.07,145.49,145.44,60.2637]
[1718545545473,0.51,145.49,145.45,2.5438]
[1718545545859,0.51,145.49,145.44,70.4396]
[1718545546080,0.51,145.49,145.44,67.8958]
[1718545546308,0.51,145.49,145.44,45.0]
[1718545546309,3.0531,145.49,145.44,45.0]
[1718545546486,0.17,145.48,145.43,25.4409]
[1718545547390,0.17,145.48,145.44,2.5439]
[1718545549481,0.17,145.48,145.42,5.0885]
[1718545549702,5.56,145.45,145.4,2.5445]
[1718545549986,5.56,145.45,145.39,2.5447]
[1718545549987,5.56,145.43,145.39,2.5447]
[1718545550192,5.56,145.43,145.4,7.6339]
[1718545550403,6.24,145.44,145.41,2.5445]
[1718545550696,6.24,145.44,145.4,7.6339]
[1718545551197,6.24,145.44,145.41,2.5445]
[1718545551369,6.24,145.44,145.39,22.9034]
[1718545551568,6.24,145.44,145.39,7.6345]
[1718545551766,6.24,145.44,145.4,2.5446]
[1718545551966,0.17,145.44,145.39,20.66]
[1718545552204,0.17,145.44,145.42,7.6329]
[1718545552566,0.68,145.45,145.42,2.5443]
[1718545552969,0.68,145.45,145.42,15.2659]
[1718545553199,0.68,145.45,145.42,7.6329]
[1718545553415,0.68,145.45,145.42,2.5443]
[1718545554194,0.68,145.45,145.41,13.1931]
[1718545554685,0.34,145.45,145.41,13.1931]
[1718545554884,6.07,145.46,145.45,7.864942]
[1718545555093,6.24,145.46,145.45,7.864942]
[1718545555581,15.9102,145.47,145.45,7.864942]
[1718545556619,18.4537,145.47,145.45,7.864942]
[1718545557119,24.0137,145.47,145.45,7.864942]
[1718545557493,0.34,145.46,145.45,7.864942]
[1718545559923,6.24,145.46,145.45,7.864942]
[1718545560608,8.7836,145.46,145.45,7.864942]
[1718545561228,6.24,145.46,145.45,7.864942]
[1718545563716,31.6764,145.46,145.45,7.864942]
[1718545564824,13.8709,145.46,145.45,7.864942]
[1718545565430,8.7836,145.46,145.45,7.864942]
[1718545565657,0.68,145.46,145.45,7.864942]
[1718545565817,15.9102,145.47,145.45,7.864942]
[1718545566303,21.4702,145.47,145.45,7.864942]
[1718545566726,6.1908,145.5,145.45,7.864942]
[1718545566913,5.56,145.49,145.45,7.864942]
[1718545567113,5.56,145.49,145.45,10.408642]
[1718545567704,8.7337,145.5,145.45,10.408742]
[1718545567956,5.56,145.49,145.45,10.408742]
[1718545568613,5.56,145.49,145.45,7.864942]
[1718545568918,8.7337,145.5,145.45,10.408642]
[1718545568919,5.56,145.5,145.45,10.408642]
[1718545569133,0.68,145.49,145.45,10.408642]
[1718545569511,0.68,145.49,145.45,15.968642]
[1718545569708,0.68,145.49,145.45,21.056242]
[1718545570033,7.16627547,145.51,145.46,5.0872]
[1718545570243,7.16627547,145.51,145.45,34.084942]
[1718545570244,7.16627547,145.51,145.5,2.5429]
[1718545570454,16.3825,145.55,145.5,10.6457]
[1718545570602,18.9246,145.55,145.49,7.6292]
[1718545570805,24.4846,145.55,145.5,2.5429]
[1718545571233,44.8215,145.55,145.48,12.7162]
[1718545571406,15.2535,145.54,145.49,45.0]
[1718545571707,13.1868,145.54,145.48,2.5432]
[1718545571905,13.1868,145.54,145.48,8.1032]
[1718545572121,13.1868,145.54,145.49,45.0]
[1718545572336,13.1873,145.53,145.47,10.6467]
[1718545572506,13.8678,145.52,145.47,5.56]
[1718545572708,6.24,145.52,145.47,2.5434]
[1718545572944,8.7826,145.52,145.47,45.0]
[1718545573132,8.2729,145.5,145.45,10.408542]
[1718545573339,0.34,145.49,145.45,15.496142]
[1718545573943,0.34,145.49,145.45,23.127542]
[1718545574108,0.34,145.49,145.46,2.5436]
[1718545575244,0.34,145.49,145.46,7.6309]
[1718545576123,0.34,145.49,145.46,2.38686001]
[1718545576640,5.56,145.51,145.46,2.38686001]
[1718545576641,0.17,145.51,145.46,13.1906]
[1718545576820,0.51,145.51,145.46,13.1906]
[1718545577346,0.17,145.5,145.45,21.056042]
[1718545577638,5.73,145.49,145.45,7.864942]
[1718545577836,0.17,145.48,145.45,7.864942]
[1718545578133,5.9,145.48,145.45,7.864942]
[1718545578637,0.34,145.48,145.45,7.864942]
[1718545589359,0.34,145.48,145.45,10.408742]
[1718545589557,16.35743166,145.53,145.47,5.56]
[1718545589757,2.5426,145.52,145.47,5.56]
[1718545589939,13.1878,145.52,145.46,65.8215]
[1718545590467,13.1878,145.52,145.46,58.1906]
[1718545590657,2.5427,145.51,145.46,53.1035]
[1718545590961,13.1883,145.51,145.45,31.230942]
[1718545591149,13.1883,145.51,145.45,21.056042]
[1718545591349,5.56,145.5,145.45,15.968642]
[1718545591551,0.34,145.49,145.45,15.968642]
[1718545591870,0.34,145.49,145.45,21.056242]
[1718545592170,0.34,145.49,145.45,28.687642]
[1718545592548,0.34,145.49,145.46,2.5436]
[1718545592739,0.51,145.5,145.46,7.6308]
[1718545593043,0.51,145.5,145.46,15.2616]
[1718545593442,0.51,145.5,145.46,7.6308]
[1718545593961,0.17,145.5,145.47,7.6302]
[1718545594144,0.17,145.5,145.47,20.8205]
[1718545594346,0.17,145.5,145.48,2.5433]
[1718545595075,0.17,145.5,145.47,30.9943]
[1718545595365,0.17,145.5,145.48,2.5433]
[1718545596066,0.17,145.5,145.46,10.6471]
[1718545596262,0.17,145.5,145.46,13.1906]
[1718545596460,0.51,145.51,145.46,13.1906]
[1718545598486,0.51,145.51,145.46,20.8215]
[1718545598651,0.51,145.51,145.46,13.1906]
[1718545600992,0.51,145.51,145.46,20.8215]
[1718545601791,0.17,145.5,145.46,8.1035]
[1718545602084,0.34,145.5,145.46,2.5435]
[1718545602375,0.34,145.49,145.45,38.861842]
[1718545602576,0.34,145.49,145.46,2.5436]
[1718545602958,0.17,145.49,145.46,15.2617]
[1718545603156,0.17,145.49,145.46,7.6308]
[1718545604978,0.17,145.49,145.46,15.2617]
[1718545605356,0.17,145.49,145.47,2.5434]
[1718545605978,0.17,145.49,145.46,25.436]
[1718545606865,0.17,145.49,145.46,7.6307]
[1718545608886,0.17,145.49,145.46,15.2616]
[1718545614876,0.17,145.49,145.47,2.5434]
[1718545615885,0.17,145.49,145.46,25.4362]
[1718545616186,0.17,145.49,145.47,2.5434]
[1718545617804,0.17,145.49,145.46,25.4362]
[1718545617996,0.17,145.49,145.46,7.6307]
[1718545620091,0.17,145.49,145.47,2.5434]
[1718545620291,0.17,145.49,145.46,15.2615]
[1718545620503,0.34,145.49,145.45,10.408542]
[1718545620699,0.51,145.49,145.45,15.496142]
[1718545621817,0.51,145.49,145.46,2.5436]
[1718545622333,0.34,145.49,145.47,2.5434]
[1718545622635,0.17,145.49,145.48,2.5433]
[1718545622939,16.2012,145.51,145.47,5.56]
[1718545623102,22.99462906,145.55,145.51,5.0855]
[1718545623419,15.8298,145.55,145.52,7.6276]
[1718545623723,15.8298,145.55,145.52,7.6277]
[1718545623922,14.5013,145.57,145.52,2.5425]
[1718545624096,11.9596,145.57,145.52,2.5425]
[1718545624425,2.5419,145.56,145.5,25.4285]
[1718545624601,0.17,145.55,145.5,7.6284]
[1718545624802,0.68,145.55,145.5,7.6284]
[1718545625023,0.68,145.55,145.5,15.2572]
[1718545625400,0.68,145.55,145.5,7.6284]
[1718545626031,0.68,145.55,145.5,15.2572]
[1718545626508,0.68,145.55,145.5,12.7144]
[1718545626712,0.68,145.55,145.5,25.4289]
[1718545627114,0.68,145.55,145.5,7.6284]
[1718545627325,0.68,145.55,145.5,2.5428]
[1718545627603,0.68,145.55,145.5,47.5428]
[1718545627805,3.2221,145.55,145.5,47.5428]
[1718545628731,3.2221,145.55,145.5,45.0]
[1718545629918,3.2221,145.55,145.5,47.5429]
[1718545630310,8.3063,145.55,145.5,45.0]
[1718545630932,15.9325,145.55,145.5,45.0]
[1718545631132,8.3063,145.55,145.49,52.6291]
[1718545633432,0.17,145.55,145.51,2.5427]
[1718545633625,2.7117,145.57,145.53,5.56]
[1718545633933,0.17,145.56,145.53,5.56]
[1718545634133,0.17,145.56,145.52,8.1025]
[1718545634334,0.17,145.56,145.52,5.56]
[1718545634717,0.17,145.56,145.52,8.1025]
[1718545635018,0.34,145.56,145.52,8.1025]
[1718545635215,0.34,145.56,145.51,25.4267]
[1718545635405,0.34,145.56,145.52,50.56]
[1718545635833,2.8819,145.56,145.52,50.56]
[1718545636031,0.34,145.56,145.52,50.56]
[1718545636435,0.34,145.56,145.52,47.5426]
[1718545637029,0.34,145.56,145.52,50.56]
[1718545637250,5.9,145.56,145.47,20.66]
[1718545637557,8.1022,145.54,145.49,2.543]
[1718545638135,8.1022,145.54,145.49,7.6292]
[1718545638136,5.56,145.54,145.49,7.6292]
[1718545638337,8.1022,145.54,145.5,45.0]
[1718545638546,5.73,145.53,145.48,2.5431]
[1718545638746,5.73,145.53,145.48,60.2593]
[1718545639046,5.73,145.53,145.48,52.6295]
[1718545639256,5.73,145.53,145.48,60.2594]
[1718545639447,5.73,145.53,145.48,57.7163]
[1718545640034,5.73,145.53,145.48,60.2594]
[1718545640267,5.73,145.53,145.49,2.5431]